[Event "2nd Namma Bengaluru Open-A 2025"]
[Site "Bengaluru"]
[Date "2025.04.12"]
[Round "4.1"]
[White "Deepan Chakkravarthy J."]
[Black "Grigoryan, Karen H."]
[Result "1-0"]
[Annotator "ChessBase"]
[ECO "B75"]
[WhiteElo "2394"]
[BlackElo "2556"]
[PlyCount "69"]
[EventDate "2025.04.10"]
[EventType "swiss"]
[EventCountry "IND"]
[SourceTitle "playchess.com"]
[Source "ChessBase"]
[SourceQuality "1"]
[TimeControl "5400+30"]

1. e4 {[%emt 0:01:01]} c5 {[%emt 0:00:09]} 2. Nf3 {[%emt 0:00:07]} d6 {[%emt 0:00:06]} 3. d4 {[%emt 0:00:12]} cxd4 {[%emt 0:00:05]} 4. Nxd4 {[%emt 0:00:03]} Nf6 {[%emt 0:00:08]} 5. Nc3 {[%emt 0:00:02]} g6 {[%emt 0:01:12]} 6. Be3 {[%emt 0:00:07]} Bg7 {[%emt 0:00:27]} 7. f3 {[%emt 0:00:08]} a6 {[%emt 0:00:05]} 8. Qd2 {[%emt 0:00:21]} h5 {[%emt 0:00:05]} 9. Bc4 {[%emt 0:03:20]} Nbd7 {[%emt 0:00:57]} 10. O-O-O {[%emt 0:00:52]} Qc7 {[%emt 0:00:07]} 11. Bb3 {[%emt 0:00:05]} b5 {[%emt 0:00:09]} 12. Kb1 {[%emt 0:00:16]} Bb7 {[%emt 0:00:08]} 13. h3 {[%emt 0:12:36]} Ne5 {[%emt 0:02:32]} 14. g4 {[%emt 0:04:20]} Nfd7 {[%emt 0:00:46]} 15. gxh5 {[%emt 0:22:12]} Rxh5 {[%emt 0:00:29]} 16. Qg2 {[%emt 0:00:02]} Nc4 {[%emt 0:04:00]} 17. Ne6 {[%emt 0:02:37]} fxe6 {[%emt 0:01:22]} 18. Qxg6+ {[%emt 0:00:07]} Kd8 {[%emt 0:00:07]} 19. Qxg7 {[%emt 0:03:54]} Nde5 {[%emt 0:08:24]} 20. f4 {[%emt 0:04:27]} Nxe3 {[%emt 0:01:15]} 21. fxe5 {[%emt 0:04:57]} Nxd1 {[%emt 0:02:45]} 22. Rxd1 {[%emt 0:01:54]} Qd7 {[%emt 0:07:13]} 23. exd6 {[%emt 0:00:38]} exd6 {[%emt 0:00:05]} 24. Qf6+ {[%emt 0:00:06]} Kc7 {[%emt 0:00:09]} 25. Bxe6 {[%emt 0:00:05]} Rf8 {[%emt 0:00:40]} 26. Qxf8 {[%emt 0:01:57]} Qxe6 {[%emt 0:00:04]} 27. a4 {[%emt 0:07:56]} b4 {[%emt 0:04:55]} 28. Nd5+ {[%emt 0:00:42]} Bxd5 {[%emt 0:00:33]} 29. exd5 {[%emt 0:00:11]} Rxd5 {[%emt 0:02:45]} 30. Rg1 {[%emt 0:00:42]} Rf5 {[%emt 0:02:06]} 31. Rg7+ {[%emt 0:04:32]} Kc6 {[%emt 0:00:10]} 32. Qa8+ {[%emt 0:00:15]} Kb6 {[%emt 0:00:37]} 33. Qd8+ {[%emt 0:02:13]} Kc6 {[%emt 0:00:22]} 34. Qc7+ {[%emt 0:01:52]} Kd5 {[%emt 0:00:08]} 35. Qa5+ {[%emt 0:00:21]} 1-0

[Event "2nd Namma Bengaluru Open-A 2025"]
[Site "Bengaluru"]
[Date "2025.04.12"]
[Round "4.2"]
[White "Petrosyan, Manuel"]
[Black "Panda Sambit"]
[Result "1-0"]
[Annotator "ChessBase"]
[ECO "E07"]
[WhiteElo "2544"]
[BlackElo "2391"]
[PlyCount "83"]
[EventDate "2025.04.10"]
[EventType "swiss"]
[EventCountry "IND"]
[SourceTitle "playchess.com"]
[Source "ChessBase"]
[SourceQuality "1"]
[TimeControl "5400+30"]

1. c4 {[%emt 1:31:00]} e6 {[%emt 0:11:05]} 2. Nf3 {[%emt 0:00:00]} d5 {[%emt 0:04:52]} 3. d4 {[%emt 0:00:00]} Nf6 {[%emt 0:00:27]} 4. g3 {[%emt 0:00:00]} Be7 {[%emt 0:05:51]} 5. Bg2 {[%emt 0:00:00]} O-O {[%emt 0:00:05]} 6. O-O {[%emt 0:00:00]} c6 {[%emt 0:00:16]} 7. Nc3 {[%emt 0:00:00]} Nbd7 {[%emt 0:08:59]} 8. Qd3 {[%emt 0:00:00]} b6 {[%emt 0:08:26]} 9. e4 {[%emt 0:00:00]} Bb7 {[%emt 0:05:38]} 10. e5 {[%emt 0:00:00]} dxc4 {[%emt 0:11:14]} 11. Qxc4 {[%emt 0:00:00]} Nd5 {[%emt 0:00:02]} 12. Nxd5 {[%emt 0:00:00]} cxd5 {[%emt 0:00:12]} 13. Qa4 {[%emt 0:00:00]} a6 {[%emt 0:12:49]} 14. Re1 {[%emt 0:00:00]} Rc8 {[%emt 0:00:13]} 15. Bf1 {[%emt 0:00:00]} Nb8 {[%emt 0:06:42]} 16. Bd3 {[%emt 0:00:00]} Nc6 {[%emt 0:00:39]} 17. a3 {[%emt 0:00:00]} Qe8 {[%emt 0:07:47]} 18. Qd1 {[%emt 0:00:00]} Na5 {[%emt 0:06:18]} 19. h4 {[%emt 0:00:00]} h6 {[%emt 0:00:34]} 20. Bb1 {[%emt 0:00:00]} h5 {[%emt 0:04:24]} 21. b4 {[%emt 0:10:00]} Nc4 {[%emt 0:00:19]} 22. Ng5 {[%emt 0:00:00]} Bxg5 {[%emt 0:02:40]} 23. Bxg5 {[%emt 0:00:00]} f6 {[%emt 0:01:36]} 24. exf6 {[%emt 0:00:00]} gxf6 {[%emt 0:00:03]} 25. Bh6 {[%emt 0:00:00]} Qf7 {[%emt 0:00:01]} 26. Bxf8 {[%emt 0:00:00]} Rxf8 {[%emt 0:00:06]} 27. Bd3 {[%emt 0:00:00]} e5 {[%emt 0:01:44]} 28. Be2 {[%emt 0:00:00]} f5 {[%emt 0:00:53]} 29. Bxc4 {[%emt 0:00:00]} dxc4 {[%emt 0:00:04]} 30. Rxe5 {[%emt 0:00:00]} Re8 {[%emt 0:00:30]} 31. Qe2 {[%emt 0:00:00]} Rxe5 {[%emt 0:00:54]} 32. Qxe5 {[%emt 0:00:00]} Be4 {[%emt 0:00:06]} 33. d5 {[%emt 0:00:00]} Qxd5 {[%emt 0:00:05]} 34. Qxd5+ {[%emt 0:00:00]} Bxd5 {[%emt 0:00:04]} 35. Rd1 {[%emt 0:00:00]} Be4 {[%emt 0:00:03]} 36. Rd7 {[%emt 0:00:00]} Kf8 {[%emt 0:00:31]} 37. Kf1 {[%emt 0:00:00]} Ke8 {[%emt 0:00:04]} 38. Rg7 {[%emt 0:00:00]} Kd8 {[%emt 0:02:37]} 39. Ke1 {[%emt 0:00:00]} c3 {[%emt 0:00:11]} 40. Kd1 {[%emt 0:00:00]} Kc8 {[%emt 0:00:47]} 41. Kc1 {[%emt 0:00:00]} b5 {[%emt 0:00:31]} 42. Rh7 {[%emt 0:00:23]} 1-0

[Event "2nd Namma Bengaluru Open-A 2025"]
[Site "Bengaluru"]
[Date "2025.04.12"]
[Round "4.3"]
[White "Shahil Dey"]
[Black "Pranav Anand"]
[Result "0-1"]
[Annotator "ChessBase"]
[ECO "D05"]
[WhiteElo "2360"]
[BlackElo "2538"]
[PlyCount "128"]
[EventDate "2025.04.10"]
[EventType "swiss"]
[EventCountry "IND"]
[SourceTitle "playchess.com"]
[Source "ChessBase"]
[SourceQuality "1"]
[TimeControl "5400+30"]

1. d4 {[%emt 0:00:03]} Nf6 {[%emt 0:00:18]} 2. Nf3 {[%emt 0:00:11]} d5 {[%emt 0:01:54]} 3. e3 {[%emt 0:00:06]} e6 {[%emt 0:02:08]} 4. Bd3 {[%emt 0:00:05]} b6 {[%emt 0:00:10]} 5. b3 {[%emt 0:00:21]} Bb7 {[%emt 0:00:48]} 6. Bb2 {[%emt 0:00:06]} Nbd7 {[%emt 0:00:37]} 7. Nbd2 {[%emt 0:00:27]} Bd6 {[%emt 0:00:30]} 8. Qe2 {[%emt 0:01:53]} Ne4 {[%emt 0:05:04]} 9. O-O {[%emt 0:09:15]} f5 {[%emt 0:05:05]} 10. Ne5 {[%emt 0:03:11]} Bxe5 {[%emt 0:05:11]} 11. dxe5 {[%emt 0:00:43]} O-O {[%emt 0:00:12]} 12. f3 {[%emt 0:09:17]} Nxd2 {[%emt 0:06:44]} 13. Qxd2 {[%emt 0:00:04]} Qe7 {[%emt 0:00:46]} 14. Rad1 {[%emt 0:03:30]} Rfd8 {[%emt 0:03:31]} 15. Qe2 {[%emt 0:02:34]} Nc5 {[%emt 0:04:29]} 16. Ba3 {[%emt 0:12:05]} a5 {[%emt 0:01:34]} 17. c4 {[%emt 0:15:36]} a4 {[%emt 0:03:23]} 18. Bb4 {[%emt 0:01:48]} c6 {[%emt 0:15:42]} 19. cxd5 {[%emt 0:02:49]} cxd5 {[%emt 0:00:38]} 20. bxa4 {[%emt 0:02:38]} Qh4 {[%emt 0:05:47]} 21. Qe1 {[%emt 0:05:39]} Qxe1 {[%emt 0:08:49]} 22. Rfxe1 {[%emt 0:00:14]} Rxa4 {[%emt 0:04:59]} 23. a3 {[%emt 0:00:05]} Nxd3 {[%emt 0:01:19]} 24. Rxd3 {[%emt 0:00:27]} Rc8 {[%emt 0:00:21]} 25. Rd2 {[%emt 0:01:35]} Rc4 {[%emt 0:02:05]} 26. Rb1 {[%emt 0:02:51]} Bc6 {[%emt 0:00:30]} 27. f4 {[%emt 0:07:37]} Kf7 {[%emt 0:00:49]} 28. Kf2 {[%emt 0:00:14]} h6 {[%emt 0:02:11]} 29. g3 {[%emt 0:02:31]} Ra8 {[%emt 0:00:56]} 30. Rd4 {[%emt 0:01:34]} b5 {[%emt 0:00:15]} 31. Rxc4 {[%emt 0:03:46]} dxc4 {[%emt 0:01:15]} 32. Rd1 {[%emt 0:00:13]} Bd5 {[%emt 0:00:35]} 33. h3 {[%emt 0:00:55]} g5 {[%emt 0:03:04]} 34. Rd2 {[%emt 0:02:29]} Kg6 {[%emt 0:02:32]} 35. Rd1 {[%emt 0:00:04]} Rh8 {[%emt 0:01:01]} 36. Bc3 {[%emt 0:01:22]} h5 {[%emt 0:01:19]} 37. h4 {[%emt 0:01:05]} gxh4 {[%emt 0:00:24]} 38. gxh4 {[%emt 0:00:03]} Ra8 {[%emt 0:00:27]} 39. Bb4 {[%emt 0:00:13]} Kf7 {[%emt 0:00:04]} 40. Rg1 {[%emt 0:00:55]} Be4 {[%emt 0:00:21]} 41. Rd1 {[%emt 0:03:14]} Bd3 {[%emt 0:00:13]} 42. Ra1 {[%emt 0:01:00]} Rc8 {[%emt 0:02:47]} 43. Bc3 {[%emt 0:00:52]} Bc2 {[%emt 0:01:32]} 44. Rg1 {[%emt 0:01:06]} Ra8 {[%emt 0:10:11]} 45. Bb4 {[%emt 0:00:11]} Rd8 {[%emt 0:00:00]} 46. Ke2 {[%emt 0:02:03]} Bd3+ {[%emt 0:00:00]} 47. Kf2 {[%emt 0:01:16]} Be4 {[%emt 0:00:00]} 48. Bc3 {[%emt 0:00:28]} Rd3 {[%emt 0:00:00]} 49. Rc1 {[%emt 0:00:01]} Ke8 {[%emt 0:00:00]} 50. Ke2 {[%emt 0:00:07]} Kd7 {[%emt 0:00:00]} 51. Bb4 {[%emt 0:02:25]} Rb3 {[%emt 0:00:00]} 52. Kd2 {[%emt 0:02:19]} Kc6 {[%emt 0:00:00]} 53. Rg1 {[%emt 0:00:39]} Kd5 {[%emt 0:00:00]} 54. Rg8 {[%emt 0:00:28]} Rb2+ {[%emt 0:00:00]} 55. Kc1 {[%emt 0:00:18]} Rc2+ {[%emt 0:00:00]} 56. Kd1 {[%emt 0:00:03]} Bd3 {[%emt 0:00:00]} 57. Rd8+ {[%emt 0:00:55]} Ke4 {[%emt 0:00:00]} 58. Bc5 {[%emt 0:00:00]} Ra2 {[%emt 0:00:13]} 59. Rd6 {[%emt 0:00:29]} Kf3 {[%emt 0:00:31]} 60. Rd8 {[%emt 0:00:43]} Be4 {[%emt 0:00:20]} 61. Bb4 {[%emt 0:00:52]} Kxe3 {[%emt 0:00:08]} 62. Bd2+ {[%emt 0:00:17]} Kf3 {[%emt 0:00:07]} 63. Bc1 {[%emt 0:00:34]} Rh2 {[%emt 0:00:44]} 64. Rd6 {[%emt 0:00:41]} Rh1+ {[%emt 0:00:05]} 0-1

[Event "2nd Namma Bengaluru Open-A 2025"]
[Site "Bengaluru"]
[Date "2025.04.12"]
[Round "4.4"]
[White "Pantsulaia, Levan"]
[Black "Sammed Jaykumar, Shete"]
[Result "1-0"]
[Annotator "ChessBase"]
[ECO "A09"]
[WhiteElo "2532"]
[BlackElo "2391"]
[PlyCount "85"]
[EventDate "2025.04.10"]
[EventType "swiss"]
[EventCountry "IND"]
[SourceTitle "playchess.com"]
[Source "ChessBase"]
[SourceQuality "1"]
[TimeControl "5400+30"]

1. Nf3 {[%emt 0:01:24]} d5 {[%emt 0:00:11]} 2. c4 {[%emt 0:00:19]} d4 {[%emt 0:00:16]} 3. b4 {[%emt 0:00:14]} c5 {[%emt 0:00:22]} 4. b5 {[%emt 0:00:07]} Nd7 {[%emt 0:00:32]} 5. g3 {[%emt 0:00:22]} e5 {[%emt 0:00:10]} 6. d3 {[%emt 0:00:05]} Bd6 {[%emt 0:00:30]} 7. Bg2 {[%emt 0:00:08]} Ngf6 {[%emt 0:00:05]} 8. O-O {[%emt 0:00:10]} O-O {[%emt 0:00:14]} 9. a4 {[%emt 0:01:50]} a6 {[%emt 0:00:42]} 10. e4 {[%emt 0:03:00]} axb5 {[%emt 0:11:15]} 11. cxb5 {[%emt 0:02:19]} c4 {[%emt 0:00:05]} 12. dxc4 {[%emt 0:00:05]} Nc5 {[%emt 0:00:16]} 13. Nfd2 {[%emt 0:02:14]} Ra7 {[%emt 0:02:49]} 14. Qc2 {[%emt 0:06:04]} Bg4 {[%emt 0:06:34]} 15. Re1 {[%emt 0:16:59]} d3 {[%emt 0:09:57]} 16. Qa2 {[%emt 0:02:55]} Rxa4 {[%emt 0:02:52]} 17. Ba3 {[%emt 0:00:05]} Qa5 {[%emt 0:02:02]} 18. Qb2 {[%emt 0:00:08]} Ra8 {[%emt 0:02:15]} 19. Bxc5 {[%emt 0:03:44]} Bxc5 {[%emt 0:01:53]} 20. Rxa4 {[%emt 0:00:06]} Qxa4 {[%emt 0:00:14]} 21. Qxe5 {[%emt 0:00:35]} Qa7 {[%emt 0:00:29]} 22. Qf4 {[%emt 0:01:30]} Be2 {[%emt 0:12:31]} 23. Nb3 {[%emt 0:00:06]} Bb4 {[%emt 0:31:06]} 24. N1d2 {[%emt 0:01:41]} Ng4 {[%emt 0:00:23]} 25. e5 {[%emt 0:06:43]} Bc3 {[%emt 0:02:12]} 26. Bd5 {[%emt 0:08:36]} Nxe5 {[%emt 0:00:56]} 27. Rc1 {[%emt 0:00:38]} Bxd2 {[%emt 0:10:13]} 28. Nxd2 {[%emt 0:00:20]} Re8 {[%emt 0:02:01]} 29. c5 {[%emt 0:02:56]} Qa3 {[%emt 0:00:28]} 30. Rc4 {[%emt 0:00:17]} Qa1+ {[%emt 0:01:09]} 31. Kg2 {[%emt 0:00:13]} Kh8 {[%emt 0:00:44]} 32. Re4 {[%emt 0:05:17]} f6 {[%emt 0:00:31]} 33. Bxb7 {[%emt 0:00:10]} Rd8 {[%emt 0:00:29]} 34. Qe3 {[%emt 0:04:18]} h5 {[%emt 0:00:24]} 35. b6 {[%emt 0:00:27]} Kh7 {[%emt 0:00:33]} 36. Rxe5 {[%emt 0:00:47]} fxe5 {[%emt 0:00:33]} 37. c6 {[%emt 0:00:30]} Rf8 {[%emt 0:00:32]} 38. Qc5 {[%emt 0:02:30]} Qb2 {[%emt 0:00:31]} 39. Qxf8 {[%emt 0:00:30]} Qxd2 {[%emt 0:00:08]} 40. c7 {[%emt 0:00:24]} Qc1 {[%emt 0:00:28]} 41. Be4+ {[%emt 0:00:18]} g6 {[%emt 0:00:04]} 42. Qf7+ {[%emt 0:00:25]} Kh8 {[%emt 0:00:03]} 43. Qf6+ {[%emt 0:00:59]} 1-0

[Event "2nd Namma Bengaluru Open-A 2025"]
[Site "Bengaluru"]
[Date "2025.04.12"]
[Round "4.5"]
[White "Sanikidze, Tornike"]
[Black "Viani Antonio Dcunha"]
[Result "0-1"]
[Annotator "ChessBase"]
[ECO "E11"]
[WhiteElo "2448"]
[BlackElo "2378"]
[PlyCount "104"]
[EventDate "2025.04.10"]
[EventType "swiss"]
[EventCountry "IND"]
[SourceTitle "playchess.com"]
[Source "ChessBase"]
[SourceQuality "1"]
[TimeControl "5400+30"]

1. d4 {[%emt 0:02:08]} Nf6 {[%emt 1:31:00]} 2. c4 {[%emt 0:00:23]} e6 {[%emt 0:00:00]} 3. Nf3 {[%emt 0:00:13]} Bb4+ {[%emt 0:00:00]} 4. Bd2 {[%emt 0:01:13]} Bxd2+ {[%emt 0:00:00]} 5. Qxd2 {[%emt 0:06:25]} d5 {[%emt 0:00:00]} 6. e3 {[%emt 0:02:17]} O-O {[%emt 0:00:00]} 7. Nc3 {[%emt 0:00:29]} Nbd7 {[%emt 0:00:00]} 8. cxd5 {[%emt 0:10:12]} exd5 {[%emt 0:00:00]} 9. Qc2 {[%emt 0:02:19]} c5 {[%emt 0:00:00]} 10. Be2 {[%emt 0:04:16]} cxd4 {[%emt 0:00:00]} 11. exd4 {[%emt 0:21:29]} Nb8 {[%emt 0:00:00]} 12. Ne5 {[%emt 0:05:21]} Qb6 {[%emt 0:00:00]} 13. O-O-O {[%emt 0:04:44]} Be6 {[%emt 0:00:00]} 14. f4 {[%emt 0:03:09]} Nc6 {[%emt 0:00:00]} 15. Nxc6 {[%emt 0:08:01]} Qxc6 {[%emt 0:00:00]} 16. f5 {[%emt 0:00:10]} Bd7 {[%emt 0:00:00]} 17. Bb5 {[%emt 0:01:07]} Qc8 {[%emt 0:00:00]} 18. Bd3 {[%emt 0:02:41]} b5 {[%emt 0:00:00]} 19. Kb1 {[%emt 0:01:35]} b4 {[%emt 0:00:00]} 20. Ne2 {[%emt 0:02:25]} Ng4 {[%emt 0:00:00]} 21. Qxc8 {[%emt 0:01:25]} Raxc8 {[%emt 0:00:00]} 22. Rdf1 {[%emt 0:00:15]} Rfe8 {[%emt 0:00:00]} 23. Nc1 {[%emt 0:00:27]} Re3 {[%emt 0:00:00]} 24. Rf4 {[%emt 0:06:05]} h5 {[%emt 0:00:00]} 25. Bc2 {[%emt 0:01:37]} Bb5 {[%emt 0:00:00]} 26. h3 {[%emt 0:04:52]} Nf6 {[%emt 0:00:00]} 27. Rd1 {[%emt 0:01:03]} Rg3 {[%emt 0:00:00]} 28. Rd2 {[%emt 0:01:04]} Re8 {[%emt 0:00:00]} 29. Nd3 {[%emt 0:06:16]} Re4 {[%emt 0:02:47]} 30. Rff2 {[%emt 0:01:11]} Bxd3 {[%emt 0:04:39]} 31. Rxd3 {[%emt 0:00:14]} Re1+ {[%emt 0:00:11]} 32. Rd1 {[%emt 0:00:01]} Rxd1+ {[%emt 0:00:13]} 33. Bxd1 {[%emt 0:00:01]} Rd3 {[%emt 0:00:43]} 34. Bf3 {[%emt 0:00:04]} Ne4 {[%emt 0:07:57]} 35. Bxe4 {[%emt 0:01:53]} dxe4 {[%emt 0:00:00]} 36. Kc2 {[%emt 0:00:47]} Rxd4 {[%emt 0:00:00]} 37. Rd2 {[%emt 0:00:07]} Rc4+ {[%emt 0:00:00]} 38. Kb3 {[%emt 0:00:02]} Rc5 {[%emt 0:00:00]} 39. Kxb4 {[%emt 0:01:03]} Rxf5 {[%emt 0:00:00]} 40. Kc4 {[%emt 0:00:48]} Rf1 {[%emt 0:00:00]} 41. Kd4 {[%emt 0:00:33]} f5 {[%emt 0:00:00]} 42. g4 {[%emt 0:00:26]} fxg4 {[%emt 0:00:00]} 43. hxg4 {[%emt 0:00:15]} hxg4 {[%emt 0:00:00]} 44. Rg2 {[%emt 0:01:24]} Rf4 {[%emt 0:00:05]} 45. Ke3 {[%emt 0:00:00]} g5 {[%emt 0:00:07]} 46. b4 {[%emt 0:00:00]} Kf7 {[%emt 0:00:51]} 47. b5 {[%emt 0:00:21]} Ke6 {[%emt 0:05:27]} 48. Rc2 {[%emt 0:01:04]} Kd5 {[%emt 0:00:00]} 49. Rd2+ {[%emt 0:00:14]} Ke5 {[%emt 0:00:00]} 50. Rc2 {[%emt 0:00:35]} Rf3+ {[%emt 0:00:00]} 51. Ke2 {[%emt 0:00:01]} g3 {[%emt 0:00:00]} 52. Ke1 {[%emt 0:00:16]} Kf4 {[%emt 0:00:00]} 0-1

[Event "2nd Namma Bengaluru Open-A 2025"]
[Site "Bengaluru"]
[Date "2025.04.12"]
[Round "4.6"]
[White "John Veny Akkarakaran"]
[Black "Nitish Belurkar"]
[Result "1/2-1/2"]
[Annotator "ChessBase"]
[ECO "B33"]
[WhiteElo "2350"]
[BlackElo "2441"]
[PlyCount "60"]
[EventDate "2025.04.10"]
[EventType "swiss"]
[EventCountry "IND"]
[SourceTitle "playchess.com"]
[Source "ChessBase"]
[SourceQuality "1"]
[TimeControl "5400+30"]

1. e4 {[%emt 0:02:57]} c5 {[%emt 0:00:06]} 2. Nf3 {[%emt 0:00:06]} e6 {[%emt 0:00:02]} 3. d4 {[%emt 0:00:08]} cxd4 {[%emt 0:00:05]} 4. Nxd4 {[%emt 0:00:06]} Nf6 {[%emt 0:00:02]} 5. Nc3 {[%emt 0:00:08]} Nc6 {[%emt 0:00:06]} 6. Ndb5 {[%emt 0:00:46]} d6 {[%emt 0:00:12]} 7. Bf4 {[%emt 0:00:44]} e5 {[%emt 0:00:01]} 8. Bg5 {[%emt 0:00:21]} a6 {[%emt 0:00:05]} 9. Na3 {[%emt 0:00:15]} Be6 {[%emt 0:00:05]} 10. Nc4 {[%emt 0:18:01]} Rb8 {[%emt 0:00:57]} 11. Ne3 {[%emt 0:06:04]} Be7 {[%emt 0:00:07]} 12. Bxf6 {[%emt 0:07:16]} Bxf6 {[%emt 0:00:07]} 13. Ncd5 {[%emt 0:05:30]} Bg5 {[%emt 0:00:02]} 14. Bc4 {[%emt 0:03:15]} O-O {[%emt 0:07:43]} 15. O-O {[%emt 0:03:03]} b5 {[%emt 0:03:32]} 16. Bb3 {[%emt 0:03:35]} g6 {[%emt 0:04:30]} 17. c3 {[%emt 0:05:37]} Kh8 {[%emt 0:05:34]} 18. Qe2 {[%emt 0:05:48]} a5 {[%emt 0:05:13]} 19. Rad1 {[%emt 0:09:38]} a4 {[%emt 0:04:18]} 20. Bc2 {[%emt 0:00:42]} Ne7 {[%emt 0:00:49]} 21. Nxe7 {[%emt 0:02:42]} Qxe7 {[%emt 0:00:48]} 22. Nd5 {[%emt 0:00:19]} Qb7 {[%emt 0:06:09]} 23. Nb4 {[%emt 0:05:03]} Rfd8 {[%emt 0:12:46]} 24. a3 {[%emt 0:02:58]} Bc4 {[%emt 0:00:41]} 25. Bd3 {[%emt 0:00:47]} Bb3 {[%emt 0:00:01]} 26. Bc2 {[%emt 0:00:14]} Bc4 {[%emt 0:00:05]} 27. Bd3 {[%emt 0:00:35]} Bb3 {[%emt 0:01:20]} 28. Bc2 {[%emt 0:01:19]} Bc4 {[%emt 0:00:32]} 29. Bd3 {[%emt 0:00:05]} Bb3 {[%emt 0:00:02]} 30. Bc2 {[%emt 0:00:06]} Bc4 {[%emt 0:00:02]} 1/2-1/2

[Event "2nd Namma Bengaluru Open-A 2025"]
[Site "Bengaluru"]
[Date "2025.04.12"]
[Round "4.7"]
[White "Vaz, Ethan"]
[Black "Dzhumaev, Marat"]
[Result "1/2-1/2"]
[Annotator "ChessBase"]
[ECO "C54"]
[WhiteElo "2430"]
[BlackElo "2352"]
[PlyCount "105"]
[EventDate "2025.04.10"]
[EventType "swiss"]
[EventCountry "IND"]
[SourceTitle "playchess.com"]
[Source "ChessBase"]
[SourceQuality "1"]
[TimeControl "5400+30"]

1. e4 {[%emt 0:00:29]} e5 {[%emt 0:01:41]} 2. Nf3 {[%emt 0:00:06]} Nc6 {[%emt 0:00:06]} 3. Bc4 {[%emt 0:00:27]} Bc5 {[%emt 0:00:11]} 4. c3 {[%emt 0:00:18]} Nf6 {[%emt 0:00:06]} 5. d3 {[%emt 0:00:14]} d6 {[%emt 0:00:20]} 6. O-O {[%emt 0:03:59]} O-O {[%emt 0:00:16]} 7. Nbd2 {[%emt 0:03:59]} a5 {[%emt 0:01:13]} 8. a4 {[%emt 0:04:49]} h6 {[%emt 0:01:36]} 9. Re1 {[%emt 0:02:52]} Ba7 {[%emt 0:00:51]} 10. Bb3 {[%emt 0:02:14]} Re8 {[%emt 0:00:31]} 11. Nc4 {[%emt 0:03:54]} Be6 {[%emt 0:01:23]} 12. Be3 {[%emt 0:04:44]} Bxe3 {[%emt 0:19:44]} 13. Nxe3 {[%emt 0:00:29]} d5 {[%emt 0:00:39]} 14. exd5 {[%emt 0:01:51]} Nxd5 {[%emt 0:00:08]} 15. d4 {[%emt 0:18:37]} Nxe3 {[%emt 0:00:14]} 16. fxe3 {[%emt 0:07:41]} Bxb3 {[%emt 0:05:58]} 17. Qxb3 {[%emt 0:00:01]} Ra6 {[%emt 0:00:17]} 18. Rad1 {[%emt 0:09:20]} Rb6 {[%emt 0:12:27]} 19. Qc2 {[%emt 0:00:29]} Qd5 {[%emt 0:00:25]} 20. Nd2 {[%emt 0:10:59]} Qa2 {[%emt 0:04:44]} 21. Ra1 {[%emt 0:01:38]} Qd5 {[%emt 0:04:18]} 22. e4 {[%emt 0:04:04]} Qd8 {[%emt 0:00:48]} 23. d5 {[%emt 0:01:11]} Nb8 {[%emt 0:00:13]} 24. Nc4 {[%emt 0:00:10]} Rf6 {[%emt 0:07:03]} 25. Nxa5 {[%emt 0:01:48]} c6 {[%emt 0:00:16]} 26. b4 {[%emt 0:03:23]} Qb6+ {[%emt 0:00:16]} 27. Kh1 {[%emt 0:00:05]} cxd5 {[%emt 0:00:09]} 28. exd5 {[%emt 0:01:16]} Rf2 {[%emt 0:04:56]} 29. Qd3 {[%emt 0:01:42]} Nd7 {[%emt 0:01:22]} 30. Nc4 {[%emt 0:02:32]} Qf6 {[%emt 0:00:19]} 31. Qe3 {[%emt 0:03:19]} Rf4 {[%emt 0:02:04]} 32. Nd2 {[%emt 0:00:57]} Nb6 {[%emt 0:01:04]} 33. Ne4 {[%emt 0:00:49]} Qg6 {[%emt 0:00:13]} 34. Rad1 {[%emt 0:03:41]} Nxa4 {[%emt 0:00:22]} 35. d6 {[%emt 0:00:48]} Rd8 {[%emt 0:02:36]} 36. Ra1 {[%emt 0:00:48]} b5 {[%emt 0:02:01]} 37. g3 {[%emt 0:00:42]} Rg4 {[%emt 0:02:14]} 38. h3 {[%emt 0:00:37]} Qh5 {[%emt 0:01:18]} 39. Kg2 {[%emt 0:01:19]} Rg6 {[%emt 0:00:08]} 40. g4 {[%emt 0:00:18]} Qh4 {[%emt 0:01:29]} 41. Qf2 {[%emt 0:00:17]} Qxf2+ {[%emt 0:01:15]} 42. Kxf2 {[%emt 0:00:01]} Nb2 {[%emt 0:00:08]} 43. Ke2 {[%emt 0:01:22]} Nc4 {[%emt 0:00:08]} 44. Red1 {[%emt 0:00:24]} h5 {[%emt 0:00:48]} 45. Kf3 {[%emt 0:01:01]} hxg4+ {[%emt 0:00:48]} 46. hxg4 {[%emt 0:00:01]} Rh6 {[%emt 0:00:36]} 47. d7 {[%emt 0:00:55]} Kf8 {[%emt 0:00:24]} 48. Kg3 {[%emt 0:01:01]} Ke7 {[%emt 0:00:18]} 49. Ra7 {[%emt 0:01:19]} f5 {[%emt 0:04:05]} 50. gxf5 {[%emt 0:00:00]} Ne3 {[%emt 0:00:05]} 51. Rd3 {[%emt 0:00:02]} Nxf5+ {[%emt 0:00:07]} 52. Kg4 {[%emt 0:00:14]} Nd6 {[%emt 0:03:27]} 53. Nc5 {[%emt 0:00:42]} 1/2-1/2

[Event "2nd Namma Bengaluru Open-A 2025"]
[Site "Bengaluru"]
[Date "2025.04.12"]
[Round "4.8"]
[White "Kaustuv, Kundu"]
[Black "Sanket Chakravarty"]
[Result "0-1"]
[Annotator "ChessBase"]
[ECO "E04"]
[WhiteElo "2407"]
[BlackElo "2317"]
[PlyCount "62"]
[EventDate "2025.04.10"]
[EventType "swiss"]
[EventCountry "IND"]
[SourceTitle "playchess.com"]
[Source "ChessBase"]
[SourceQuality "1"]
[TimeControl "5400+30"]

1. Nf3 {[%emt 0:00:10]} d5 {[%emt 0:04:36]} 2. g3 {[%emt 0:00:43]} c5 {[%emt 0:00:17]} 3. Bg2 {[%emt 0:00:21]} Nc6 {[%emt 0:00:16]} 4. d4 {[%emt 0:00:58]} e6 {[%emt 0:00:43]} 5. O-O {[%emt 0:01:28]} Nf6 {[%emt 0:01:17]} 6. c4 {[%emt 0:00:07]} dxc4 {[%emt 0:00:13]} 7. Ne5 {[%emt 0:00:06]} Bd7 {[%emt 0:01:34]} 8. Na3 {[%emt 0:00:57]} cxd4 {[%emt 0:03:46]} 9. Naxc4 {[%emt 0:00:24]} Be7 {[%emt 0:01:00]} 10. Qb3 {[%emt 0:03:12]} Qc7 {[%emt 0:00:55]} 11. Bf4 {[%emt 0:06:37]} Nh5 {[%emt 0:00:48]} 12. Nxc6 {[%emt 0:02:47]} Nxf4 {[%emt 0:00:08]} 13. Nxe7 {[%emt 0:00:17]} Nxg2 {[%emt 0:00:07]} 14. Qb4 {[%emt 0:15:27]} a5 {[%emt 0:00:58]} 15. Nd6+ {[%emt 0:00:08]} Kxe7 {[%emt 0:00:07]} 16. Nf5+ {[%emt 0:00:05]} Kf6 {[%emt 0:00:07]} 17. Qe7+ {[%emt 0:00:27]} Kg6 {[%emt 0:00:05]} 18. Nxd4 {[%emt 0:09:36]} Rhe8 {[%emt 0:09:03]} 19. Qa3 {[%emt 0:00:32]} e5 {[%emt 0:01:41]} 20. Qd3+ {[%emt 0:13:26]} e4 {[%emt 0:04:34]} 21. Qb3 {[%emt 0:02:17]} Bh3 {[%emt 0:01:12]} 22. Rac1 {[%emt 0:05:19]} Qe5 {[%emt 0:01:43]} 23. Qb6+ {[%emt 0:00:20]} Qf6 {[%emt 0:00:56]} 24. Qxf6+ {[%emt 0:03:29]} gxf6 {[%emt 0:00:07]} 25. Rfd1 {[%emt 0:00:30]} Rac8 {[%emt 0:00:26]} 26. e3 {[%emt 0:02:05]} f5 {[%emt 0:03:49]} 27. Nb3 {[%emt 0:03:51]} Rxc1 {[%emt 0:01:43]} 28. Rxc1 {[%emt 0:00:05]} f4 {[%emt 0:01:28]} 29. exf4 {[%emt 0:00:41]} e3 {[%emt 0:00:07]} 30. fxe3 {[%emt 0:00:04]} Nxe3 {[%emt 0:00:27]} 31. Nxa5 {[%emt 0:00:05]} Ng4 {[%emt 0:00:39]} 0-1